Workbook

Sheet Erweiterte Version
A1: Wirtschaftliche Beurteilung einer Photovoltaikanlage (für natürliche Personen)
B2: Technische Angaben | G2: Finanzielle Angaben | L2: Steuerwesen | R2: Kauf / Verkauf von Elektrizität | X2: Rétribution unique
B3: Modulfläche (m2) | E3: 40 | G3: Gesamte Anlagekosten (CHF) | J3: 20000 | L3: Grenzsteuersatz auf Investitionen | O3: 0.15 | R3: Eigenverbrauch (kWh/a) | U3: 2300
B4: Anlagetyp | E4: Ajoutée | G4: Gemeindesubvention (CHF) | J4: 0 | L4: Fiskaleffekte berücksichtigt | O4: oui | R4: Verkaufsanteil an der produzierten Elektrizität | U4: =1-U3/production_annuelle -> 0.6515151515 | X4: base | Y4: =ru_base -> 1400
B5: Installierte Leistung (kWp) | E5: 6 | G5: Anfänglicher Investitionsbetrag (CHF) | J5: =cout_total-subvention_communale-subvention_init_avancee -> 13500 | L5: Grenzsteuersatz auf Einnahmen | O5: 0.2 | R5: KEV-Vergütungstarif für Stromverkauf (Fr./kWh) | U5: =rpc_version_avancee -> 0.264 | X5: puissance | Y5: =ru_puissance -> 850
B6: Max. Leistung pro m2 (Wp) | E6: =puissance_installee/E3*1000 -> 150 | G6: Eigenkapital | I6: =inv_initial*J6 -> 13500 | J6: 1 | L6: Unbesteuertes Produktionsvolumen (kWh) | O6: 10000 | R6: Tarif Verkauf an Stromverteiler (Fr./kWh) | U6: 0.06
B7: Leistungskategorie | E7: =IF(puissance_installee<=2,0,IF(puissance_installee<=10,"A",IF(puissance_installee<=30,"B",IF(puissance_installee<=100,"C",IF(puissance_installee<=1000,"D","E"))))) -> A | G7: Fremdkapital | I7: =inv_initial-fond_propre -> 0 | J7: =1-J6 -> 0 | L7: Typ der Finanzhilfe | R7: Tarif Ankauf vom Stromverteiler (Fr./kWh) | U7: 0.18
B8: Spezifische Produktion (kWh/kWp) | E8: 1100 | G8: Zinssatz für Fremdkapital | J8: 0.0275 | L8: Verfügbarer Finanzhilfe | O8: =mode_subvention_dispo -> EIV | R8: Jährlicher Anstieg des Strompreises | U8: 0.025
B9: Jährliche Produktionsabnahme | E9: 0.008 | G9: Spezifische Anlagekosten (CHF/kWp) | J9: =cout_total/puissance_installee -> 3333.333333 | L9: Wahl der Finanzhilfe | O9: EIV | R9: Ø-Stromtarif (Ankauf) für 25 Jahre (CHF/kWH) | U9: =tarif_achat_elec_distributeur*(1-(1+croissance_prix_elec)^26)/(1-(1+croissance_prix_elec))/26 -> 0.2493118248
B10: Anfängliche Jahresproduktkion (kWh/a) | E10: =production_specifique*puissance_installee -> 6600 | G10: Amortisationsdauer (Jahre) | J10: 25 | L10: Anmeldejahr | O10: 2014 | R10: Ø-Stromtarif (Ankauf) nach 25 Jahren (CHF/kWh) | U10: =tarif_achat_elec_distributeur*(1+croissance_prix_elec)^(25-1) -> 0.3255706709
G11: Jährliche Kosten (Versicherungen, usw.) | J11: 0.003 | L11: Datum Inbetriebnahme | O11: 2014-06-01 | R11: Wartezeit für KEV (Jahre) | U11: 8
L12: Anfängliche Subvention EIV (CHF) | O12: =IF(type_subvention_avancee="EIV",ru_base+ru_puissance*puissance_installee,0) -> 6500 | P12: =subvention_init_avancee/cout_total -> 0.325 | R12: Erhalt KEV (Anzahl Jahre) | U12: =IF(date_mise_en_service>DATE(2014,1,1),20,25) -> 20
B14: Ergebnisse | L14: Erweiterte Finanzergebnisse
B15: Breakeven / Zeithorizont | E15: =COUNTIF(Q22:Q47,"neg") -> 18 | G15: Eigenkapitalrendite pro Jahr | J15: =IF(fond_propre=0,"-",((P47/fond_propre+1)^(1/25)-1)) -> 0.01375359275 | L15: Eigenkapitalrendite | O15: 0
B16: Dauer Schuldenabbau (Jahre) | E16: =COUNTIF(N23:N47,"<>0") -> 0 | G16: Jährliche Rendite des Vorhabens | J16: =((M49/inv_initial+1)^(1/25)-1) -> 0.01375359275 | L16: Kapitalkosten (WACC) | O16: ='Erweiterte Version'!J6*O15+'Erweiterte Version'!J7*taux_interet*(1-taux_deduction_fiscale) -> 0
B17: =CONCATENATE("Jährl Schuldenabbau ohne Einnahmen",duree_amortissement," ans") -> Jährl Schuldenabbau ohne Einnahmen25 ans | E17: =IF(montant_dette_initiale=0,0,PMT(taux_interet,duree_amortissement,-montant_dette_initiale)) -> 0 | G17: Generiterte Erträge über 25 Jahre | J17: =SUM(M23:M47) -> 18995.20249 | L17: Nettobarwert 25 Jahre | O17: =NPV(taux_actualisation,M23:M47)+M22 -> 5495.202495
B18: Gestehungskosten über 25 Jahre (Rp/kWh) | E18: =IF(reinvestissement_effet_fiscal="oui",(-H49-J49-K49)/C49*100,(-H49-J49)/C49*100) -> 8.698712792 | G18: Gewinn nach 25 Jahren | J18: =P47 -> 5495.202495 | L18: Interner Zinssatz 25 Jahre | O18: =IRR(M22:M47) -> 0.03096004602
B21: Jahr | C21: Jährliche Produktion (kWh) | D21: Verkaufspreis (CHF/KWh) | E21: Einnahmen aus Stromproduktion | F21: Steuern aus Einnahmen | G21: Einsparungen auf Stromrechnung | H21: Jährliche Kosten | I21: Netto Einnahmen | J21: Gelegentlich anfallende Kosten | K21: Fiskaleffekt | L21: Zinsen auf Darlehen | M21: Cashflow | N21: Schuldenabbau | O21: Restschuld | P21: Vermögen | Q21: Break-even
B22: 0 | E22: 0 | F22: =IF(C22*part_electricite_vendue>production_non_imposee,-(C22*part_electricite_vendue-production_non_imposee)*taux_imposition_revenu*D22,0) -> 0 | H22: 0 | I22: =E22+F22+H22 -> 0 | J22: =-montant_dette_initiale-fond_propre -> -13500 | M22: =-montant_dette_initiale-fond_propre -> -13500 | O22: =-montant_dette_initiale -> 0 | P22: =-fond_propre -> -13500 | Q22: =IF(P22<0,"neg",IF(O22<0,"neg","pos")) -> neg
B23: 1 | C23: =production_annuelle*(1-reduction_annuelle_prod*(B23-1)) -> 6600 | D23: =IF(type_subvention_avancee="KEV",IF(OR(B23>duree_rpc_annee,(B23-1)<temps_attente),tarif_vente_elec_distributeur,tarif_vente_elec),tarif_vente_elec_distributeur) -> 0.06 | E23: =C23*part_electricite_vendue*D23 -> 258 | F23: 0 | G23: =-production_annuelle*(1-reduction_annuelle_prod*(B23-1))*tarif_achat_elec_distributeur*(1-part_electricite_vendue)*(1+croissance_prix_elec)^(B23-1) -> -414 | H23: =-frais_annuel*cout_total -> -60 | I23: =E23+F23+H23-G23 -> 612 | J23: 0 | K23: =IF((J22+L22)<0,-(J22+L22)*taux_deduction_fiscale,0) -> 2025 | L23: =IF(O22<0,O22*taux_interet,0) -> 0 | M23: =IF(reinvestissement_effet_fiscal="oui",K23+I23+L23+J23,I23+L23+J23) -> 2637 | N23: =IF(O22<0,IF(O22+M23<0,M23,-O22),0) -> 0 | O23: =IF(O22<0,IF(O22+N23<0,O22+N23,0),0) -> 0 | P23: =P22+M23-N23 -> -10863 | Q23: =IF(P23<0,"neg",IF(O23<0,"neg","pos")) -> neg
B24: =B23+1 -> 2 | C24: 6547.2 | D24: 0.06 | E24: 255.936 | F24: 0 | G24: -420.9552 | H24: -60 | I24: 616.8912 | J24: 0 | K24: =IF((J23+L23)<0,-(J23+L23)*taux_deduction_fiscale,0) -> 0 | L24: 0 | M24: 616.8912 | N24: =IF(O23<0,IF(O23+M24<0,M24,-O23),0) -> 0 | O24: 0 | P24: -10246.1088 | Q24: neg
B25: =B24+1 -> 3 | C25: 6494.4 | D25: 0.06 | E25: 253.872 | F25: 0 | G25: -427.99941 | H25: -60 | I25: 621.87141 | J25: 0 | K25: 0 | L25: 0 | M25: 621.87141 | N25: 0 | O25: 0 | P25: -9624.23739 | Q25: neg
B26: 4 | C26: 6441.6 | D26: 0.06 | E26: 251.808 | F26: 0 | G26: -435.1327335 | H26: -60 | I26: 626.9407335 | J26: 0 | K26: 0 | L26: 0 | M26: 626.9407335 | N26: 0 | O26: 0 | P26: -8997.296657 | Q26: neg
B27: 5 | C27: 6388.8 | D27: 0.06 | E27: 249.744 | F27: 0 | G27: -442.3552235 | H27: -60 | I27: 632.0992235 | J27: 0 | K27: 0 | L27: 0 | M27: 632.0992235 | N27: 0 | O27: 0 | P27: -8365.197433 | Q27: neg
B28: 6 | C28: 6336 | D28: 0.06 | E28: 247.68 | F28: 0 | G28: -449.6668801 | H28: -60 | I28: 637.3468801 | J28: 0 | K28: 0 | L28: 0 | M28: 637.3468801 | N28: 0 | O28: 0 | P28: -7727.850553 | Q28: neg
B29: 7 | C29: 6283.2 | D29: 0.06 | E29: 245.616 | F29: 0 | G29: -457.0676475 | H29: -60 | I29: 642.6836475 | J29: 0 | K29: 0 | L29: 0 | M29: 642.6836475 | N29: 0 | O29: 0 | P29: -7085.166905 | Q29: neg
B30: 8 | C30: 6230.4 | D30: 0.06 | E30: 243.552 | F30: 0 | G30: -464.5574115 | H30: -60 | I30: 648.1094115 | J30: 0 | K30: 0 | L30: 0 | M30: 648.1094115 | N30: 0 | O30: 0 | P30: -6437.057494 | Q30: neg
B31: 9 | C31: 6177.6 | D31: 0.06 | E31: 241.488 | F31: 0 | G31: -472.1359964 | H31: -60 | I31: 653.6239964 | J31: 0 | K31: 0 | L31: 0 | M31: 653.6239964 | N31: 0 | O31: 0 | P31: -5783.433497 | Q31: neg
B32: 10 | C32: 6124.8 | D32: 0.06 | E32: 239.424 | F32: 0 | G32: -479.8031622 | H32: -60 | I32: 659.2271622 | J32: 0 | K32: 0 | L32: 0 | M32: 659.2271622 | N32: 0 | O32: 0 | P32: -5124.206335 | Q32: neg
B33: 11 | C33: 6072 | D33: 0.06 | E33: 237.36 | F33: 0 | G33: -487.5586012 | H33: -60 | I33: 664.9186012 | J33: 0 | K33: 0 | L33: 0 | M33: 664.9186012 | N33: 0 | O33: 0 | P33: -4459.287734 | Q33: neg
B34: 12 | C34: 6019.2 | D34: 0.06 | E34: 235.296 | F34: 0 | G34: -495.4019352 | H34: -60 | I34: 670.6979352 | J34: 0 | K34: 0 | L34: 0 | M34: 670.6979352 | N34: 0 | O34: 0 | P34: -3788.589799 | Q34: neg
B35: 13 | C35: 5966.4 | D35: 0.06 | E35: 233.232 | F35: 0 | G35: -503.3327118 | H35: -60 | I35: 676.5647118 | J35: 0 | K35: 0 | L35: 0 | M35: 676.5647118 | N35: 0 | O35: 0 | P35: -3112.025087 | Q35: neg
B36: 14 | C36: 5913.6 | D36: 0.06 | E36: 231.168 | F36: 0 | G36: -511.350401 | H36: -60 | I36: 682.518401 | J36: 0 | K36: 0 | L36: 0 | M36: 682.518401 | N36: 0 | O36: 0 | P36: -2429.506686 | Q36: neg
B37: 15 | C37: 5860.8 | D37: 0.06 | E37: 229.104 | F37: 0 | G37: -519.4543918 | H37: -60 | I37: 688.5583918 | K37: 0 | L37: 0 | M37: 688.5583918 | N37: 0 | O37: 0 | P37: -1740.948294 | Q37: neg
B38: 16 | C38: 5808 | D38: 0.06 | E38: 227.04 | F38: 0 | G38: -527.643988 | H38: -60 | I38: 694.683988 | J38: 0 | K38: 0 | L38: 0 | M38: 694.683988 | N38: 0 | O38: 0 | P38: -1046.264306 | Q38: neg
B39: 17 | C39: 5755.2 | D39: 0.06 | E39: 224.976 | F39: 0 | G39: -535.9184051 | H39: -60 | I39: 700.8944051 | J39: 0 | K39: 0 | L39: 0 | M39: 700.8944051 | N39: 0 | O39: 0 | P39: -345.3699011 | Q39: neg
B40: 18 | C40: 5702.4 | D40: 0.06 | E40: 222.912 | F40: 0 | G40: -544.2767655 | H40: -60 | I40: 707.1887655 | J40: 0 | K40: 0 | L40: 0 | M40: 707.1887655 | N40: 0 | O40: 0 | P40: 361.8188644 | Q40: pos
B41: 19 | C41: 5649.6 | D41: 0.06 | E41: 220.848 | F41: 0 | G41: -552.718095 | H41: -60 | I41: 713.566095 | J41: 0 | K41: 0 | L41: 0 | M41: 713.566095 | N41: 0 | O41: 0 | P41: 1075.384959 | Q41: pos
B42: 20 | C42: 5596.8 | D42: 0.06 | E42: 218.784 | F42: 0 | G42: -561.241318 | H42: -60 | I42: 720.025318 | J42: 0 | K42: 0 | L42: 0 | M42: 720.025318 | N42: 0 | O42: 0 | P42: 1795.410277 | Q42: pos
B43: 21 | C43: 5544 | D43: 0.06 | E43: 216.72 | F43: 0 | G43: -569.8452533 | H43: -60 | I43: 726.5652533 | J43: 0 | K43: 0 | L43: 0 | M43: 726.5652533 | N43: 0 | O43: 0 | P43: 2521.975531 | Q43: pos
B44: 22 | C44: 5491.2 | D44: 0.06 | E44: 214.656 | F44: 0 | G44: -578.5286095 | H44: -60 | I44: 733.1846095 | J44: 0 | K44: 0 | L44: 0 | M44: 733.1846095 | N44: 0 | O44: 0 | P44: 3255.16014 | Q44: pos
B45: 23 | C45: 5438.4 | D45: 0.06 | E45: 212.592 | F45: 0 | G45: -587.2899803 | H45: -60 | I45: 739.8819803 | J45: 0 | K45: 0 | L45: 0 | M45: 739.8819803 | N45: 0 | O45: 0 | P45: 3995.04212 | Q45: pos
B46: 24 | C46: 5385.6 | D46: 0.06 | E46: 210.528 | F46: 0 | G46: -596.1278392 | H46: -60 | I46: 746.6558392 | J46: 0 | K46: 0 | L46: 0 | M46: 746.6558392 | N46: 0 | O46: 0 | P46: 4741.69796 | Q46: pos
B47: 25 | C47: 5332.8 | D47: 0.06 | E47: 208.464 | F47: 0 | G47: -605.0405348 | H47: -60 | I47: 753.5045348 | J47: 0 | K47: 0 | L47: 0 | M47: 753.5045348 | N47: 0 | O47: 0 | P47: 5495.202495 | Q47: pos
B49: Total | C49: =SUM(C22:C47) -> 149160 | E49: 5830.8 | F49: 0 | G49: =SUM(G22:G47) -> -12639.40249 | H49: -1500 | I49: 16970.20249 | J49: -13500 | K49: 2025 | L49: 0 | M49: =SUM(M22:M48) -> 5495.202495 | N49: =SUM(N22:N48) -> 0

Sheet Annexe
A1: RPC
D2: Indice | E2: 2 | F2: 3 | G2: 4 | H2: 5 | I2: 6 | J2: 7 | K2: 8 | L2: 9 | M2: 10 | N2: 11
E3: =IF(date_mise_en_service>=E5,1,0) -> 1 | F3: 1 | G3: 1 | H3: 1 | I3: 1 | J3: 1 | K3: 1 | L3: 1 | M3: =IF(date_mise_en_service>=M5,1,0) -> 0 | N3: 0
E4: =IF(date_mise_en_service<E5,1,0) -> 0 | F4: 0 | G4: 0 | H4: 0 | I4: 0 | J4: 0 | K4: 0 | L4: 0 | M4: 1 | N4: 1
A5: Catégorie d'installation | B5: Puissance Installée | E5: 1900-01-01 | F5: 2010-01-01 | G5: 2011-01-01 | H5: 2012-01-01 | I5: 2012-03-01 | J5: 2012-10-01 | K5: 2013-01-01 | L5: 2014-01-01 | M5: 2015-04-01 | N5: 2015-10-01
A6: A | B6: <=10kW | C6: Isolée | D6: =CONCATENATE(A6,C6) -> AIsolée | E6: 0 | F6: 0.533 | G6: 0.427 | H6: 0.393 | I6: 0.365 | J6: 0.331 | K6: 0.305 | L6: 0.238 | M6: 0.234 | N6: 0.204
A7: B | B7: <=30kW | C7: Isolée | D7: BIsolée | E7: 0 | F7: 0.443 | G7: 0.393 | H7: 0.362 | I7: 0.337 | J7: 0.27 | K7: 0.248 | L7: 0.238 | M7: 0.234 | N7: 0.204
A8: C | B8: <=100kW | C8: Isolée | D8: CIsolée | E8: 0 | F8: 0.418 | G8: 0.343 | H8: 0.316 | I8: 0.32 | J8: 0.248 | K8: 0.228 | L8: 0.198 | M8: 0.18 | N8: 0.177
A9: D | B9: <=1000kW | C9: Isolée | D9: DIsolée | E9: 0 | F9: 0.402 | G9: 0.305 | H9: 0.281 | I9: 0.29 | J9: 0.231 | K9: 0.213 | L9: 0.192 | M9: 0.188 | N9: 0.176
A10: E | B10: >1000kW | C10: Isolée | D10: EIsolée | E10: 0 | F10: 0.402 | G10: 0.289 | H10: 0.266 | I10: 0.281 | J10: 0.216 | K10: 0.199 | L10: 0.172 | M10: 0.185 | N10: 0.176
A11: A | B11: <=10kW | C11: Ajoutée | D11: AAjoutée | E11: 0 | F11: 0.615 | G11: 0.483 | H11: 0.444 | I11: 0.399 | J11: 0.361 | K11: 0.332 | L11: 0.264 | M11: 0.234 | N11: 0.204
A12: B | B12: <=30kW | C12: Ajoutée | D12: BAjoutée | E12: 0 | F12: 0.533 | G12: 0.467 | H12: 0.43 | I12: 0.368 | J12: 0.294 | K12: 0.27 | L12: 0.264 | M12: 0.234 | N12: 0.204
A13: C | B13: <=100kW | C13: Ajoutée | D13: CAjoutée | E13: 0 | F13: 0.508 | G13: 0.422 | H13: 0.388 | I13: 0.349 | J13: 0.269 | K13: 0.247 | L13: 0.22 | M13: 0.185 | N13: 0.177
A14: D | B14: <=1000kW | C14: Ajoutée | D14: DAjoutée | E14: 0 | F14: 0.492 | G14: 0.378 | H14: 0.348 | I14: 0.317 | J14: 0.251 | K14: 0.231 | L14: 0.213 | M14: 0.188 | N14: 0.176
A15: E | B15: >1000kW | C15: Ajoutée | D15: EAjoutée | E15: 0 | F15: 0.492 | G15: 0.361 | H15: 0.332 | I15: 0.307 | J15: 0.235 | K15: 0.216 | L15: 0.191 | M15: 0.185 | N15: 0.176
A16: A | B16: <=10kW | C16: Intégrée | D16: AIntégrée | E16: 0 | F16: 0.738 | G16: 0.592 | H16: 0.545 | I16: 0.488 | J16: 0.428 | K16: 0.394 | L16: 0.304 | M16: 0.274 | N16: 0.24
A17: B | B17: <=30kW | C17: Intégrée | D17: BIntégrée | E17: 0 | F17: 0.607 | G17: 0.542 | H17: 0.499 | I17: 0.439 | J17: 0.365 | K17: 0.336 | L17: 0.304 | M17: 0.274 | N17: 0.24
A18: C | B18: <=100kW | C18: Intégrée | D18: CIntégrée | E18: 0 | F18: 0.549 | G18: 0.452 | H18: 0.422 | I18: 0.391 | J18: 0.332 | K18: 0.305 | L18: 0.253 | M18: 0.211 | N18: 0.201
A19: D | B19: <=1000kW | C19: Intégrée | D19: DIntégrée | E19: 0 | F19: 0.508 | G19: 0.415 | H19: 0.382 | I19: 0.349 | J19: 0.315 | K19: 0.29 | L19: 0.213 | M19: 0.188 | N19: 0.176
A20: E | B20: >1000kW | C20: Intégrée | D20: EIntégrée | E20: 0 | F20: 0.508 | G20: 0.391 | H20: 0.36 | I20: 0.334 | J20: 0.289 | K20: 0.266 | L20: 0.191 | M20: 0.185 | N20: 0.176
A22: Coûts d'investissements [CHF/kW]
B23: Puissance Installée | E23: =E5 -> 1900-01-01 | F23: =F5 -> 2010-01-01 | G23: =G5 -> 2011-01-01 | H23: 2012-01-01 | I23: 2012-03-01 | J23: 2012-10-01 | K23: 2013-01-01 | L23: 2014-01-01 | M23: 2015-04-01 | N23: 2015-10-01
A24: A | B24: <=10kW | C24: Isolée | D24: =CONCATENATE(A24,C24) -> AIsolée | E24: 0 | G24: 5391 | H24: 4083 | I24: 3632 | J24: =I24-(1-L24/I24)/3*I24 -> 3426.333333 | K24: =I24-(1-L24/I24)*2/3*I24 -> 3220.666667 | L24: 3015
A25: B | B25: <=30kW | C25: Isolée | D25: BIsolée | E25: 0 | G25: 4806 | H25: 3711 | I25: 3089 | J25: =I25-(1-L25/I25)/3*I25 -> 2824.333333 | K25: =I25-(1-L25/I25)*2/3*I25 -> 2559.666667 | L25: 2295
A26: C | B26: <=100kW | C26: Isolée | D26: CIsolée | E26: 0 | G26: 4450 | H26: 3478 | I26: 2687 | J26: 2451.333333 | K26: 2215.666667 | L26: 1980
A27: D | B27: <=1000kW | C27: Isolée | D27: DIsolée | E27: 0 | G27: 4183 | H27: 3219 | I27: 2464 | J27: 2249.666667 | K27: 2035.333333 | L27: 1821
A28: E | B28: >1000kW | C28: Isolée | D28: EIsolée | E28: 0 | G28: 4094 | H28: 3154 | I28: 2372 | J28: 2156 | K28: 1940 | L28: 1724
A29: A | B29: <=10kW | C29: Ajoutée | D29: AAjoutée | E29: 0 | G29: 5531 | H29: 4537 | I29: 4036 | J29: 3807.333333 | K29: 3578.666667 | L29: 3350
A30: B | B30: <=30kW | C30: Ajoutée | D30: BAjoutée | E30: 0 | G30: 5026 | H30: 4123 | I30: 3432 | J30: 3138 | K30: 2844 | L30: 2550 | M30: 1850
A31: C | B31: <=100kW | C31: Ajoutée | D31: CAjoutée | E31: 0 | G31: 4710 | H31: 3864 | I31: 2986 | J31: 2724 | K31: 2462 | L31: 2200 | M31: 1700
A32: D | B32: <=1000kW | C32: Ajoutée | D32: DAjoutée | E32: 0 | G32: 4361 | H32: 3577 | I32: 2738 | J32: 2499.666667 | K32: 2261.333333 | L32: 2023 | M32: 1650
A33: E | B33: >1000kW | C33: Ajoutée | D33: EAjoutée | E33: 0 | G33: 4272 | H33: 3504 | I33: 2635 | J33: 2395.333333 | K33: 2155.666667 | L33: 1916 | M33: 1650
A34: A | B34: <=10kW | C34: Intégrée | D34: AIntégrée | E34: 0 | G34: 6989 | H34: 5733 | I34: 4929 | J34: 4570.333333 | K34: 4211.666667 | L34: 3853
A35: B | B35: <=30kW | C35: Intégrée | D35: BIntégrée | E35: 0 | G35: 6184 | H35: 5073 | I35: 4363 | J35: 3886.333333 | K35: 3409.666667 | L35: 2933
A36: C | B36: <=100kW | C36: Intégrée | D36: CIntégrée | E36: 0 | G36: 5409 | H36: 4437 | I36: 3854 | J36: 3412.666667 | K36: 2971.333333 | L36: 2530
A37: D | B37: <=1000kW | C37: Intégrée | D37: DIntégrée | E37: 0 | G37: 4881 | H37: 4004 | I37: 3592 | J37: 3170 | K37: 2748 | L37: 2326
A38: E | B38: >1000kW | C38: Intégrée | D38: EIntégrée | E38: 0 | G38: 4717 | H38: 3869 | I38: 3395 | J38: 2997.666667 | K38: 2600.333333 | L38: 2203
A41: RPC | D41: =CONCATENATE("Taux de rétribution installation ",B42) -> Taux de rétribution installation Ajoutée
A42: Type installation | B42: =type_installation -> Ajoutée | D42: Décalage | E42: =SUM(E3:BZ3)+1 -> 9
A43: Mise en service | B43: =date_mise_en_service -> 2014-06-01 | D43: A | E43: =VLOOKUP(CONCATENATE(D43,$B$42),$D$6:$BZ$20,$E$42,0) -> 0.264
A44: Cat. Puissance | B44: ='Erweiterte Version'!E7 -> A | D44: B | E44: =VLOOKUP(CONCATENATE(D44,$B$42),$D$6:$BZ$20,$E$42,0) -> 0.264
D45: C | E45: =VLOOKUP(CONCATENATE(D45,$B$42),$D$6:$BZ$20,$E$42,0) -> 0.22
A46: Prix de vente RPC | B46: =IF(B44="A",E43,IF(B44="B",(10*E43+(B43-10)*E44)/B43,IF(B44="C",(10*E43+20*E44+(B43-30)*E45)/B43,IF(B44="D",(10*E43+20*E44+70*E45+(B43-100)*E46)/B43,IF(B44="E",(10*E43+20*E44+70*E45+900*E46+(B43-1000)*E47)/B43,0))))) -> 0.264 | C46: [CHF] | D46: D | E46: =VLOOKUP(CONCATENATE(D46,$B$42),$D$6:$BZ$20,$E$42,0) -> 0.213
A47: Cout investiss. | B47: =IF(B44=0,VLOOKUP(CONCATENATE("A",$B$42),$D$24:$BZ$38,$E$42,0),VLOOKUP(CONCATENATE(B44,$B$42),$D$24:$BZ$38,$E$42,0)) -> 3350 | C47: [CHF/kW] | D47: E | E47: =VLOOKUP(CONCATENATE(D47,$B$42),$D$6:$BZ$20,$E$42,0) -> 0.191
A50: Rétribution Unique
D51: Base [CHF]
E52: =E$5 -> 1900-01-01 | F52: =F$5 -> 2010-01-01 | G52: 2011-01-01 | H52: 2012-01-01 | I52: 2012-03-01 | J52: 2012-10-01 | K52: 2013-01-01 | L52: 2014-01-01 | M52: 2015-04-01 | N52: 2015-10-01
D53: Isolée | E53: 0 | F53: 2450 | G53: 1900 | H53: 1600 | I53: 1600 | J53: 1600 | K53: 1500 | L53: 1400 | M53: 1400 | N53: 1400
D54: Ajoutée | E54: 0 | F54: 2450 | G54: 1900 | H54: 1600 | I54: 1600 | J54: 1600 | K54: 1500 | L54: 1400 | M54: 1400 | N54: 1400
D55: Intégrée | E55: 0 | F55: 3300 | G55: 2650 | H55: 2200 | I55: 2200 | J55: 2200 | K55: 2000 | L55: 1800 | M55: 1800 | N55: 1800
D57: Puissance [CHF/kW]
E58: =E$5 -> 1900-01-01 | F58: =F$5 -> 2010-01-01 | G58: 2011-01-01 | H58: 2012-01-01 | I58: 2012-03-01 | J58: 2012-10-01 | K58: 2013-01-01 | L58: 2014-01-01 | M58: 2015-04-01 | N58: 2015-10-01
D59: Isolée | E59: 0 | F59: 1850 | G59: 1450 | H59: 1200 | I59: 1200 | J59: 1200 | K59: 1000 | L59: 850 | M59: 680 | N59: 500
D60: Ajoutée | E60: 0 | F60: 1850 | G60: 1450 | H60: 1200 | I60: 1200 | J60: 1200 | K60: 1000 | L60: 850 | M60: 680 | N60: 500
D61: Intégrée | E61: 0 | F61: 2100 | G61: 1700 | H61: 1400 | I61: 1400 | J61: 1400 | K61: 1200 | L61: 1050 | M61: 830 | N61: 610
A64: RU
A65: Type installation | B65: =type_installation -> Ajoutée
A66: Mise en service | B66: =date_mise_en_service -> 2014-06-01
A68: Base | B68: =VLOOKUP(B65,$D$53:$BZ$55,E42,0) -> 1400
A69: Puissance | B69: =VLOOKUP(B65,$D$59:$BZ$61,E42,0) -> 850

Sheet Eligibilité
C7: Annonce
C8: Catégorie puissance
C9: <=2KW | D9: <=10kW | E9: <=30kW | F9: <=100kW | G9: <=1000kW | H9: >1000kW
C10: 0 | D10: A | E10: B | F10: C | G10: D | H10: E
A11: Date annonce | B11: 2011 | C11: KEV | D11: KEV ODER EIV | E11: KEV ODER EIV | F11: KEV | G11: KEV | H11: KEV
B12: 2012 | C12: KEV | D12: KEV ODER EIV | E12: KEV ODER EIV | F12: KEV | G12: KEV | H12: KEV
B13: 2013 | C13: - | D13: EIV | E13: KEV ODER EIV | F13: KEV | G13: KEV | H13: KEV
B14: 2014 | C14: - | D14: EIV | E14: KEV ODER EIV | F14: KEV | G14: KEV | H14: KEV
B15: 2015 | C15: - | D15: EIV | E15: KEV ODER EIV | F15: KEV | G15: KEV | H15: KEV
B17: Année annonce | C17: =annee_annonce -> 2014 | D17: =MATCH(C17,B11:B14)+1 -> 5
B18: Catégorie | C18: =categorie_puissance -> A | D18: =MATCH(C18,C10:G10)+1 -> 3
B19: Choix | C19: =INDEX(B10:G14,D17,D18) -> EIV

Sheet Exemple (hidden)
B1: A supprimer
B3: Données Techniques | G3: Données Financières | L3: Fiscalité | Q3: Achat/Vente electricité
B4: m2 de panneaux solaires | E4: 40 | G4: Cout tôtal de l'installation (CHF) | J4: 20000 | L4: Taux marginal déduction fiscale | O4: 0.15 | Q4: Autoconsommation (kWh/an) | T4: 2300
B5: Type d'installation | E5: Ajoutée | G5: Subvention communale (CHF) | J5: 0 | L5: Effet fiscal considéré | O5: non | Q5: Part de l'électricité produite vendue | T5: =1-T4/E11 -> 0.6515151515
B6: Puissance installée (kWp) | E6: 6 | G6: Investissement initial résultant (CHF) | J6: =J4-J5-O13 -> 20000 | L6: Taux marginal d'imposition du revenu | O6: 0.2 | Q6: Tarif de vente électricité RPC (Fr./kWh) | T6: =rpc_version_avancee -> 0.264
B7: Puissance max par m2 (Wp) | E7: =E6/E4*1000 -> 150 | G7: Fonds propres | I7: =J6*J7 -> 20000 | J7: 1 | L7: Volume production non imposé (kWh) | O7: 10000 | Q7: Tarif vente électricité au distributeur (Fr./kWh) | T7: 0.06
B8: Catégorie de puissance | G8: Dette | I8: =J6-I7 -> 0 | J8: =1-J7 -> 0 | L8: Type d'aide financière | Q8: Tarif achat électricité au distributeur (Fr./kWh) | T8: 0.18
B9: Production spécifique (kWh/kWp) | E9: 1100 | G9: Taux d'intérêt de la dette | J9: 0.0275 | Q9: Croissance annuelle prix électicité | T9: 0.025
B10: Réduction annuelle de production | E10: 0.008 | G10: Coût spécifique installation (CHF/kWp) | J10: =J4/E6 -> 3333.333333 | L10: Choisir le type d'aide financière | O10: RU | Q10: Prix électricité moyen 25 ans (achat) | T10: =T8*(1-(1+T9)^26)/(1-(1+T9))/26 -> 0.2493118248
B11: Production annuelle initiale (kWh/an) | E11: =E9*E6 -> 6600 | G11: Durée d'amortissement (années) | J11: 25 | L11: Année d'annonce | O11: 2014 | Q11: Prix électricité après 25 ans (Fr./kWh) (achat) | T11: =T8*(1+T9)^(25-1) -> 0.3255706709
G12: Frais annuels (assurance, etc.) | J12: 0.003 | L12: Date de mise en service | O12: 2014-06-01 | Q12: Temps d'attente avant RPC (années) | T12: 8
L13: Subvention initiale RU (CHF) | O13: =IF(type_subvention_avancee="RU",ru_base+ru_puissance*puissance_installee,0) -> 0 | P13: =subvention_init_avancee/cout_total -> 0.325 | Q13: Durée max RPC (nombre d'années) | T13: =IF(O12>DATE(2014,1,1),20,25) -> 20
B17: Données Techniques | G17: Données Financières | L17: Fiscalité | Q17: Achat/Vente electricité
B18: m2 de panneaux solaires | E18: 130 | G18: Cout tôtal de l'installation (CHF) | J18: 51000 | L18: Taux marginal déduction fiscale | O18: 0.15 | Q18: Autoconsommation (kWh/an) | T18: 6000
B19: Type d'installation | E19: Ajoutée | G19: Subvention communale (CHF) | J19: 0 | L19: Effet fiscal considéré | O19: non | Q19: Part de l'électricité produite vendue | T19: =1-T18/E25 -> 0.7272727273
B20: Puissance installée (kWp) | E20: 20 | G20: Investissement initial résultant (CHF) | J20: =J18-J19-O27 -> 51000 | L20: Taux marginal d'imposition du revenu | O20: 0.2 | Q20: Tarif de vente électricité RPC (Fr./kWh) | T20: =rpc_version_avancee -> 0.264
B21: Puissance max par m2 (Wp) | E21: =E20/E18*1000 -> 153.8461538 | G21: Fonds propres | I21: =J20*J21 -> 51000 | J21: 1 | L21: Volume production non imposé (kWh) | O21: 10000 | Q21: Tarif vente électricité au distributeur (Fr./kWh) | T21: 0.06
B22: Catégorie de puissance | G22: Dette | I22: =J20-I21 -> 0 | J22: =1-J21 -> 0 | L22: Type d'aide financière | Q22: Tarif achat électricité au distributeur (Fr./kWh) | T22: 0.18
B23: Production spécifique (kWh/kWp) | E23: 1100 | G23: Taux d'intérêt de la dette | J23: 0.0275 | L23: Aide financière disponible | O23: =mode_subvention_dispo -> EIV | Q23: Croissance annuelle prix électicité | T23: 0.025
B24: Réduction annuelle de production | E24: 0.008 | G24: Coût spécifique installation (CHF/kWp) | J24: =J18/E20 -> 2550 | L24: Choisir le type d'aide financière | O24: RU | Q24: Prix électricité moyen 25 ans (achat) | T24: =T22*(1-(1+T23)^26)/(1-(1+T23))/26 -> 0.2493118248
B25: Production annuelle initiale (kWh/an) | E25: =E23*E20 -> 22000 | G25: Durée d'amortissement (années) | J25: 25 | L25: Année d'annonce | O25: 2014 | Q25: Prix électricité après 25 ans (Fr./kWh) (achat) | T25: =T22*(1+T23)^(25-1) -> 0.3255706709
G26: Frais annuels (assurance, etc.) | J26: 0.003 | L26: Date de mise en service | O26: 2014-06-01 | Q26: Temps d'attente avant RPC (années) | T26: 8
L27: Subvention initiale RU (CHF) | O27: =IF(type_subvention_avancee="RU",ru_base+ru_puissance*puissance_installee,0) -> 0 | P27: =subvention_init_avancee/cout_total -> 0.325 | Q27: Durée max RPC (nombre d'années) | T27: =IF(O26>DATE(2014,1,1),20,25) -> 20
B31: Données Techniques | G31: Données Financières | L31: Fiscalité | Q31: Achat/Vente electricité
B32: m2 de panneaux solaires | E32: 320 | G32: Cout tôtal de l'installation (CHF) | J32: 120000 | L32: Taux marginal déduction fiscale | O32: 0.15 | Q32: Autoconsommation (kWh/an) | T32: 15000
B33: Type d'installation | E33: Ajoutée | G33: Subvention communale (CHF) | J33: 0 | L33: Effet fiscal considéré | O33: non | Q33: Part de l'électricité produite vendue | T33: =1-T32/E39 -> 0.7272727273
B34: Puissance installée (kWp) | E34: 50 | G34: Investissement initial résultant (CHF) | J34: =J32-J33-O41 -> 120000 | L34: Taux marginal d'imposition du revenu | O34: 0.2 | Q34: Tarif de vente électricité RPC (Fr./kWh) | T34: =rpc_version_avancee -> 0.264
B35: Puissance max par m2 (Wp) | E35: =E34/E32*1000 -> 156.25 | G35: Fonds propres | I35: =J34*J35 -> 36000 | J35: 0.3 | L35: Volume production non imposé (kWh) | O35: 10000 | Q35: Tarif vente électricité au distributeur (Fr./kWh) | T35: 0.06
B36: Catégorie de puissance | G36: Dette | I36: =J34-I35 -> 84000 | J36: =1-J35 -> 0.7 | L36: Type d'aide financière | Q36: Tarif achat électricité au distributeur (Fr./kWh) | T36: 0.18
B37: Production spécifique (kWh/kWp) | E37: 1100 | G37: Taux d'intérêt de la dette | J37: 0.0275 | L37: Aide financière disponible | O37: =mode_subvention_dispo -> EIV | Q37: Croissance annuelle prix électicité | T37: 0.025
B38: Réduction annuelle de production | E38: 0.008 | G38: Coût spécifique installation (CHF/kWp) | J38: =J32/E34 -> 2400 | L38: Choisir le type d'aide financière | O38: RPC | Q38: Prix électricité moyen 25 ans (achat) | T38: =T36*(1-(1+T37)^26)/(1-(1+T37))/26 -> 0.2493118248
B39: Production annuelle initiale (kWh/an) | E39: =E37*E34 -> 55000 | G39: Durée d'amortissement (années) | J39: 25 | L39: Année d'annonce | O39: 2014 | Q39: Prix électricité après 25 ans (Fr./kWh) (achat) | T39: =T36*(1+T37)^(25-1) -> 0.3255706709
G40: Frais annuels (assurance, etc.) | J40: 0.003 | L40: Date de mise en service | O40: 2014-06-01 | Q40: Temps d'attente avant RPC (années) | T40: 6
L41: Subvention initiale RU (CHF) | O41: =IF(type_subvention_avancee="RU",ru_base+ru_puissance*puissance_installee,0) -> 0 | P41: =subvention_init_avancee/cout_total -> 0.325 | Q41: Durée max RPC (nombre d'années) | T41: =IF(O40>DATE(2014,1,1),20,25) -> 20
